bitfinex-derivatives/quotes_BNBF0:USTF0_20250101
["timestamp","ask_amount","ask_price","bid_price","bid_amount"]
[1735775774115,0.89021146,707.51,707.36,1.05608073]
[1735775774315,0.89021146,707.5,707.36,1.05608073]
[1735775774520,0.89021146,707.49,707.36,1.05608073]
[1735775774718,0.89021146,707.48,707.36,1.05608073]
[1735775774919,0.89021146,707.47,707.36,1.05608073]
[1735775775115,0.694,707.58,707.36,1.05608073]
[1735775775420,0.89029937,707.57,707.36,1.05608073]
[1735775775615,0.694,707.58,707.36,1.05608073]
[1735775775616,0.89029937,707.56,707.36,1.05608073]
[1735775775820,0.89029937,707.55,707.36,1.05608073]
[1735775776015,0.89029937,707.54,707.36,1.05608073]
[1735775776221,0.89029937,707.53,707.36,1.05608073]
[1735775776416,1.06017097,708.08,707.36,1.05608073]
[1735775776619,1.1502707,708.07,707.36,1.05608073]
[1735775776817,0.89014438,708.06,707.36,1.05608073]
[1735775777020,1.06017097,708.04,707.33,1.05608073]
[1735775777218,1.58414438,708.03,707.33,1.05608073]
[1735775777416,0.89014438,708.02,707.33,1.05608073]
[1735775777615,0.89014438,708.01,707.33,1.05608073]
[1735775777819,0.89014438,708.0,707.3,1.05608073]
[1735775778015,0.89014438,707.99,707.3,1.05608073]
[1735775778215,0.89014438,707.98,707.3,1.05608073]
[1735775778416,0.89014438,707.97,707.3,1.05608073]
[1735775778621,0.89014438,707.96,707.3,1.05608073]
[1735775778823,0.89014438,707.95,707.3,1.05608073]
[1735775779023,0.89014438,707.94,707.3,1.05608073]
[1735775779322,0.89014438,707.93,707.3,1.05608073]
[1735775779518,0.694,708.03,707.3,1.05608073]
[1735775779519,0.8903075,707.92,707.3,1.05608073]
[1735775779725,0.8903075,707.91,707.3,1.05608073]
[1735775779920,0.8903075,707.9,707.3,1.05608073]
[1735775780117,0.694,708.03,707.3,1.05608073]
[1735775780118,0.8903083,707.89,707.3,1.05608073]
[1735775780321,0.8903083,707.88,707.3,1.05608073]
[1735775780621,0.8903083,707.87,707.3,1.05608073]
[1735775780824,0.8903083,707.86,707.3,1.05608073]
[1735775781022,0.8903083,707.85,707.3,1.05608073]
[1735775781221,0.8903083,707.84,707.3,1.05608073]
[1735775781417,0.694,708.03,707.29,1.05608073]
[1735775781418,0.8903083,707.83,707.29,1.05608073]
[1735775781621,0.8903083,707.82,707.29,1.05608073]
[1735775781818,0.89025854,707.81,707.29,1.05608073]
[1735775782022,0.89025854,707.8,707.29,1.05608073]
[1735775782223,0.89025854,707.79,707.29,1.05608073]
[1735775782523,0.89025854,707.78,707.29,1.05608073]
[1735775782725,0.694,708.03,707.29,1.05608073]
[1735775783020,0.694,708.03,707.28,1.05608073]
[1735775784223,0.694,708.03,707.32,1.05608073]
[1735775784428,0.89021336,708.02,707.32,1.05608073]
[1735775784828,0.89021336,708.02,707.3,1.05608073]
[1735775785930,0.89021336,708.01,707.3,1.05608073]
[1735775786832,0.89021336,708.01,707.31,1.05608073]
[1735775787426,0.694,708.03,707.31,1.05608073]
[1735775789232,0.694,708.03,707.32,1.05608073]
[1735775791534,0.88963781,708.02,707.32,1.05608073]
[1735775793632,0.88975348,708.01,707.32,1.05608073]
[1735775793936,0.88975348,708.0,707.37,1.05608073]
[1735775794136,0.88975348,707.99,707.37,1.05608073]
[1735775794334,0.88975348,707.98,707.37,1.05608073]
[1735775794634,0.88975348,707.97,707.37,1.05608073]
[1735775794936,0.694,708.03,707.25,1.05608073]
[1735775794937,0.88975348,707.96,707.25,1.05608073]
[1735775795129,0.88975348,707.95,707.25,1.05608073]
[1735775795335,0.88975348,707.94,707.25,1.05608073]
[1735775795534,0.88975348,707.93,707.25,1.05608073]
[1735775795736,0.88975348,707.92,707.25,1.05608073]
[1735775795931,0.88975348,707.91,707.25,1.05608073]
[1735775796133,0.88975348,707.9,707.25,1.05608073]
[1735775796331,0.88975348,707.89,707.25,1.05608073]
[1735775796533,0.88975348,707.88,707.25,1.05608073]
[1735775796732,0.88975348,707.87,707.25,1.05608073]
[1735775796934,0.694,708.03,707.25,1.05608073]
[1735775797241,0.88937314,708.02,707.22,1.05608073]
[1735775797438,0.694,708.03,707.22,1.05608073]
[1735775797738,0.88926644,708.02,707.22,1.05608073]
[1735775797939,0.88926644,708.01,707.21,1.05608073]
[1735775798135,0.88926644,708.0,707.21,1.05608073]
[1735775798336,0.88926644,707.99,707.21,1.05608073]
[1735775798536,0.88926644,707.98,707.21,1.05608073]
[1735775798734,0.88926644,707.97,707.21,1.05608073]
[1735775798937,0.88926644,707.96,707.21,1.05608073]
[1735775799135,2.1696653,708.03,707.21,1.05608073]
[1735775799440,0.88918737,708.02,707.21,1.05608073]
[1735775799633,0.88918737,708.01,707.21,1.05608073]
[1735775799834,0.88918737,708.0,707.21,1.05608073]
[1735775800037,0.88918737,707.99,707.2,1.05608073]
[1735775800235,0.88917718,707.98,707.2,1.05608073]
[1735775800439,0.88917718,707.97,707.2,1.05608073]
[1735775800641,0.88917718,707.96,707.2,1.05608073]
[1735775800840,0.88917718,707.95,707.2,1.05608073]
[1735775801039,0.88917718,707.94,707.21,1.05608073]
[1735775801234,0.88917718,707.93,707.21,1.05608073]
[1735775801438,0.88917718,707.92,707.21,1.05608073]
[1735775801638,0.88917718,707.91,707.21,1.05608073]
[1735775801834,0.88917718,707.9,707.21,1.05608073]
[1735775802034,0.88917718,707.89,707.21,1.05608073]
[1735775802340,0.88917718,707.88,707.2,1.05608073]
[1735775802642,0.88917718,707.87,707.2,1.05608073]
[1735775802842,0.88917718,707.86,707.2,1.05608073]
[1735775803043,0.88917718,707.85,707.2,1.05608073]
[1735775803236,0.88917718,707.84,707.2,1.05608073]
[1735775803438,0.88917718,707.83,707.2,1.05608073]
[1735775803638,0.88917718,707.82,707.31,1.05608073]
[1735775803839,0.88917718,707.81,707.31,1.05608073]
[1735775804134,0.88917718,707.8,707.31,1.05608073]
[1735775804336,0.88917718,707.79,707.31,1.05608073]
[1735775804543,0.88917718,707.78,707.31,1.05608073]
[1735775804743,0.88917718,707.77,707.31,1.05608073]
[1735775804941,0.88917718,707.76,707.35,1.05608073]
[1735775805242,0.88917718,707.75,707.35,1.05608073]
[1735775805436,0.88917718,707.74,707.35,1.05608073]
[1735775805636,0.88917718,707.73,707.35,1.05608073]
[1735775805842,0.88917718,707.72,707.35,1.05608073]
[1735775806040,0.88917718,707.71,707.33,1.05608073]
[1735775806240,0.88917718,707.7,707.33,1.05608073]
[1735775806437,1.4756653,708.03,707.33,1.05608073]
[1735775806643,0.8883393,708.02,707.33,1.05608073]
[1735775806936,1.47550888,708.1,707.33,1.05608073]
[1735775807137,0.88820163,708.09,707.33,1.05608073]
[1735775807342,1.47550888,708.1,707.33,1.05608073]
[1735775807343,0.88820163,708.08,707.33,1.05608073]
[1735775807535,0.88820163,708.07,707.33,1.05608073]
[1735775807739,0.88820163,708.06,707.33,1.05608073]
[1735775807939,0.88820163,708.05,707.33,1.05608073]
[1735775808243,0.88820163,708.04,707.36,1.05608073]
[1735775808442,0.88820163,708.03,707.36,1.05608073]
[1735775808642,0.88820163,708.02,707.36,1.05608073]
[1735775808842,0.88820163,708.01,707.36,1.05608073]
[1735775809143,0.88820163,708.0,707.36,1.05608073]
[1735775809444,0.88820163,707.99,707.35,1.05608073]
[1735775809642,0.88780776,707.98,707.35,1.05608073]
[1735775809942,0.88780776,707.97,707.35,1.05608073]
[1735775810135,0.88780776,707.96,707.35,1.05608073]
[1735775810340,0.88780776,707.95,707.35,1.05608073]
[1735775810536,0.88780776,707.94,707.35,1.05608073]
[1735775810741,0.88780776,707.93,707.34,1.05608073]
[1735775810943,0.88780776,707.92,707.34,1.05608073]
[1735775811143,0.88780776,707.91,707.34,1.05608073]
[1735775811342,0.88780776,707.9,707.34,1.05608073]
[1735775811543,0.88780776,707.89,707.34,1.05608073]
[1735775811843,0.88780776,707.88,707.35,1.05608073]
[1735775812039,0.88780776,707.87,707.35,1.05608073]
[1735775812243,0.88780776,707.86,707.35,1.05608073]
[1735775812442,0.88780776,707.85,707.35,1.05608073]
[1735775812746,0.88739325,707.84,707.34,1.05608073]
[1735775812946,0.88739325,707.83,707.34,1.05608073]
[1735775813143,0.88739325,707.82,707.34,1.05608073]
[1735775813344,0.694,708.08,707.34,1.05608073]
[1735775813345,0.88739325,707.81,707.34,1.05608073]
[1735775813541,0.88739325,707.8,707.34,1.05608073]
[1735775813745,0.88739325,707.79,707.34,1.05608073]
[1735775813942,0.694,708.08,707.34,1.05608073]
[1735775813943,0.88739325,707.78,707.34,1.05608073]
[1735775814144,0.694,708.08,707.34,1.05608073]
[1735775814345,0.88724097,708.07,707.34,1.05608073]
[1735775814541,0.88724097,708.06,707.34,1.05608073]
[1735775814742,0.88724097,708.05,707.34,1.05608073]
[1735775814948,0.88724097,708.04,707.33,1.05608073]
[1735775815249,0.88724097,708.03,707.33,1.05608073]
[1735775815549,0.88724097,708.02,707.33,1.05608073]
[1735775815750,0.88724097,708.02,706.86,0.72367395]
[1735775815751,0.88724097,708.01,707.34,1.05608073]
[1735775815950,0.88724097,708.0,707.34,1.05608073]
[1735775816151,0.88724097,707.99,707.34,1.05608073]
[1735775816352,0.88724097,707.98,707.34,1.05608073]
[1735775816544,0.88724097,707.97,707.34,1.05608073]
[1735775816745,0.88724097,707.96,707.34,1.05608073]
[1735775816949,0.88724097,707.95,707.34,1.05608073]
[1735775817148,0.694,708.08,706.87,0.28293745]
[1735775817149,0.88724097,707.94,707.3,1.05608073]
[1735775817349,0.88724097,707.93,707.3,1.05608073]
[1735775817548,0.88724097,707.92,707.3,1.05608073]
[1735775817746,0.88724097,707.91,707.3,1.05608073]
[1735775817945,0.88724097,707.9,707.3,1.05608073]
[1735775818150,0.88724097,707.89,707.3,1.05608073]
[1735775818452,0.694,708.08,707.0,1.05608073]
[1735775818751,0.88698037,708.07,707.01,0.28288143]
[1735775819050,0.88698037,708.06,707.01,0.28288143]
[1735775819350,0.88698037,708.05,707.01,0.28288143]
[1735775819553,0.88698037,708.04,707.01,0.28288143]
[1735775819746,0.88698037,708.03,707.01,0.28288143]
[1735775820045,0.88698037,708.02,707.01,0.28288143]
[1735775820249,0.88698037,708.01,707.01,0.28288143]
[1735775820450,0.88698037,708.0,707.01,0.28288143]
[1735775820648,0.88698037,707.99,707.01,0.28288143]
[1735775820848,0.88698037,707.98,707.01,0.28288143]
[1735775821050,0.694,708.08,707.01,0.28288143]
[1735775821251,0.88726201,708.07,707.01,0.28288143]
[1735775821550,0.88726201,708.06,707.01,0.28288143]
[1735775821748,0.88726201,708.05,707.01,1.33896216]
[1735775821945,0.88726201,708.04,707.01,1.33896216]
[1735775822146,0.88726201,708.03,707.01,1.33896216]
[1735775822346,0.88726201,708.02,707.01,1.33896216]
[1735775822546,0.88726201,708.01,707.01,1.33896216]
[1735775822750,1.47549846,708.25,707.01,1.33896216]
[1735775822751,0.88726201,708.0,707.01,0.28288143]
[1735775823049,0.88726201,707.99,707.01,0.28288143]
[1735775823246,0.88726201,707.98,707.01,0.28288143]
[1735775823448,0.88726201,707.97,707.01,0.28288143]
[1735775823748,0.694,707.96,707.01,0.28288143]
[1735775824554,0.694,707.96,707.02,1.05608073]
[1735775825553,0.694,707.96,707.01,0.28288143]
[1735775826856,0.694,707.96,707.03,1.05608073]
[1735775828856,0.694,707.96,707.25,1.05608073]
[1735775830250,0.694,707.96,707.22,1.05608073]
[1735775831754,0.694,707.96,707.23,1.05608073]
[1735775832760,0.694,707.96,707.19,1.05608073]
[1735775833558,0.694,707.96,707.25,1.05608073]
[1735775834658,0.694,707.96,707.26,1.05608073]
[1735775836057,0.694,707.96,707.27,1.05608073]
[1735775836958,0.694,707.96,707.31,1.05608073]
[1735775837857,0.694,707.96,707.01,0.28288143]
[1735775837858,0.694,707.96,707.33,1.05608073]
[1735775839159,0.694,707.96,707.34,1.05608073]
[1735775840363,0.694,707.96,707.4,1.05608073]
[1735775841758,1.06017097,708.73,707.41,1.05608073]
[1735775841963,0.25998342,708.72,707.41,1.05608073]
[1735775842164,0.54218629,708.71,707.41,1.05608073]
[1735775842363,1.14657149,708.7,707.41,1.05608073]
[1735775842563,0.25998342,708.69,707.41,1.05608073]
[1735775842761,2.12187154,708.68,707.41,1.05608073]
[1735775842964,1.06017097,708.66,707.48,1.05608073]
[1735775843163,1.14665672,708.65,707.48,1.05608073]
[1735775843366,1.14665672,708.64,707.48,1.05608073]
[1735775843567,1.42889145,708.63,707.48,1.05608073]
[1735775843763,1.42889543,708.62,707.48,1.05608073]
[1735775844068,1.42889543,708.62,707.04,0.72158699]
[1735775844069,1.168916,708.61,707.52,1.05608073]
[1735775844268,1.42890486,708.6,707.52,1.05608073]
[1735775844563,1.14665818,708.59,707.52,1.05608073]
[1735775844769,1.14665818,708.58,707.52,1.05608073]
[1735775844969,1.14665818,708.57,707.52,1.05608073]
[1735775845170,1.14665818,708.56,707.52,1.05608073]
[1735775845371,1.14665818,708.55,707.52,1.05608073]
[1735775845572,1.14665818,708.54,707.52,1.05608073]
[1735775845872,1.14665818,708.53,707.52,1.05608073]
[1735775846070,1.14665818,708.52,707.52,1.05608073]
[1735775846272,0.28224668,708.6,707.21,1.06114093]
[1735775846273,1.14665818,708.51,707.56,1.05608073]
[1735775846472,1.14665818,708.5,707.56,1.05608073]
[1735775846673,1.14665818,708.49,707.56,1.05608073]
[1735775846873,1.06017097,708.59,707.56,1.05608073]
[1735775846874,1.14665702,708.48,707.56,1.05608073]
[1735775847073,1.14665702,708.47,707.56,1.05608073]
[1735775847374,0.8866733,708.46,707.56,1.05608073]
[1735775847576,0.8866733,708.45,707.56,1.05608073]
[1735775847777,0.8866733,708.44,707.57,1.05608073]
[1735775847977,0.8866733,708.43,707.57,1.05608073]
[1735775848178,1.06017097,708.58,707.57,1.05608073]
[1735775848378,2.20658836,708.57,707.58,1.05608073]
[1735775848678,1.14641739,708.56,707.58,1.05608073]
[1735775848876,1.14641739,708.55,707.58,1.05608073]
[1735775849078,1.14641739,708.54,707.58,1.05608073]
[1735775849278,1.14641739,708.53,707.58,1.05608073]
[1735775849477,1.14641771,708.52,707.58,1.05608073]
[1735775849678,1.14641771,708.51,707.62,1.05608073]
[1735775849878,1.14641771,708.5,707.62,1.05608073]
[1735775850079,0.88643566,708.49,707.62,1.05608073]
[1735775850279,1.14642382,708.48,707.62,1.05608073]
[1735775850577,1.14642382,708.47,707.62,1.05608073]
[1735775850779,1.14642382,708.46,707.62,1.05608073]
[1735775850979,1.14642382,708.45,707.62,1.05608073]
[1735775851177,1.14629116,708.44,707.63,1.05608073]
[1735775851373,0.25998293,708.43,707.63,1.05608073]
[1735775851577,0.8862945,708.43,707.63,1.05608073]
[1735775851781,0.8862945,708.42,707.63,1.05608073]
[1735775851975,0.8862945,708.41,707.63,1.05608073]
[1735775852174,0.8862945,708.4,707.63,1.05608073]
[1735775852379,0.8862945,708.39,707.63,1.05608073]
[1735775852680,0.8862945,708.39,707.11,2.16649608]
[1735775852681,0.8862945,708.38,707.68,1.05608073]
[1735775852878,0.8862945,708.37,707.68,1.05608073]
[1735775853180,0.8862945,708.36,707.69,1.05608073]
[1735775853378,1.06017097,708.44,707.69,1.05608073]
[1735775853379,0.8862945,708.35,707.69,1.05608073]
[1735775853575,0.8862945,708.34,707.69,1.05608073]
[1735775853780,0.8862945,708.33,707.69,1.05608073]
[1735775853979,0.8862945,708.32,707.69,1.05608073]
[1735775854179,1.06017097,708.44,707.69,1.05608073]
[1735775854180,0.8862945,708.31,707.69,1.05608073]
[1735775854375,1.06017097,708.44,707.7,1.05608073]
[1735775854579,0.88692611,708.43,707.7,1.05608073]
[1735775854780,0.88692611,708.42,707.7,1.05608073]
[1735775854980,0.88692611,708.41,707.7,1.05608073]
[1735775855180,0.88692611,708.4,707.7,1.05608073]
[1735775855377,0.88692611,708.39,707.7,1.05608073]
[1735775855678,0.88692611,708.39,707.27,1.27336912]
[1735775855679,0.88692611,708.38,707.74,1.05608073]
[1735775855884,0.88692611,708.37,707.74,1.05608073]
[1735775856183,0.88692611,708.36,707.74,1.05608073]
[1735775856380,0.88692611,708.35,707.74,1.05608073]
[1735775856678,0.88692611,708.34,707.72,1.05608073]
[1735775856878,0.88692611,708.33,707.72,1.05608073]
[1735775857083,0.88692611,708.32,707.72,1.05608073]
[1735775857282,0.88692611,708.31,707.72,1.05608073]
[1735775857477,1.06017097,708.51,707.72,1.05608073]
[1735775857682,1.14763972,708.5,707.72,1.05608073]
[1735775857882,1.14763972,708.49,707.72,1.05608073]
[1735775858082,0.88766702,708.48,707.72,1.05608073]
[1735775858285,0.88766702,708.47,707.71,1.05608073]
[1735775858485,0.88766702,708.46,707.71,1.05608073]
[1735775858782,1.06017097,708.5,707.71,1.05608073]
[1735775858783,0.88766702,708.45,707.71,1.05608073]
[1735775858983,0.88766702,708.44,707.71,1.05608073]
[1735775859184,0.88766702,708.43,707.71,1.05608073]
[1735775859484,0.88766702,708.42,707.71,1.05608073]
[1735775859783,0.88766702,708.41,707.7,1.05608073]
[1735775859984,0.88766702,708.4,707.7,1.05608073]
[1735775860184,0.88766702,708.39,707.7,1.05608073]
[1735775860377,0.88766702,708.38,707.7,1.05608073]
[1735775860578,0.88766702,708.37,707.7,1.05608073]
[1735775860779,0.88766702,708.36,707.7,1.05608073]
[1735775860980,0.88766702,708.35,707.7,1.05608073]
[1735775861179,0.88815016,708.34,707.7,1.05608073]
[1735775861485,0.88815016,708.33,707.7,1.05608073]
[1735775861686,0.88815016,708.32,707.7,1.05608073]
[1735775861880,0.88815016,708.31,707.7,1.05608073]
[1735775862086,0.88815016,708.3,707.7,1.05608073]
[1735775862286,0.88815016,708.29,707.7,1.05608073]
[1735775862485,0.88815016,708.28,707.7,1.05608073]
[1735775862687,0.88815016,708.27,707.7,1.05608073]
[1735775862888,1.06017097,708.52,707.7,1.05608073]
[1735775862889,0.88815016,708.26,707.7,1.05608073]
[1735775863088,0.88815016,708.25,707.7,1.05608073]
[1735775863388,0.88815016,708.24,707.7,1.05608073]
[1735775863589,1.06017097,708.51,707.7,1.05608073]
[1735775863791,1.14843793,708.5,707.7,1.05608073]
[1735775864085,0.88846486,708.49,707.7,1.05608073]
[1735775864284,0.88846486,708.48,707.7,1.05608073]
[1735775864486,0.88846486,708.47,707.7,1.05608073]
[1735775864784,0.88846486,708.46,707.7,1.05608073]
[1735775864983,0.88846486,708.45,707.7,1.05608073]
[1735775865187,0.88846486,708.44,707.7,1.05608073]
[1735775865384,0.88846486,708.43,707.69,1.05608073]
[1735775865584,0.88846486,708.42,707.69,1.05608073]
[1735775865788,0.88846486,708.41,707.69,1.05608073]
[1735775865987,1.06017097,708.52,707.69,1.05608073]
[1735775865988,0.88846486,708.4,707.69,1.05608073]
[1735775866189,0.88846486,708.39,707.69,1.05608073]
[1735775866488,0.88846486,708.38,707.71,1.05608073]
[1735775866685,0.8887632,708.37,707.71,1.05608073]
[1735775866887,0.8887632,708.36,707.71,1.05608073]
[1735775867085,0.8887632,708.35,707.71,1.05608073]
[1735775867286,0.8887632,708.34,707.71,1.05608073]
[1735775867487,0.694,708.36,707.71,1.05608073]
[1735775867488,0.8887632,708.33,707.71,1.05608073]
[1735775867691,0.8887632,708.32,707.71,1.05608073]
[1735775867889,0.8887632,708.31,707.71,1.05608073]
[1735775868085,0.8887632,708.3,707.71,1.05608073]
[1735775868286,0.8887632,708.29,707.71,1.05608073]
[1735775868490,0.8887632,708.28,707.71,1.05608073]
[1735775868692,0.8887632,708.27,707.7,1.05608073]
[1735775868893,0.8887632,708.26,707.7,1.05608073]
[1735775869086,0.8887632,708.25,707.7,1.05608073]
[1735775869292,0.8887632,708.24,707.7,1.05608073]
[1735775869492,0.8887632,708.23,707.7,1.05608073]
[1735775869690,0.8887632,708.22,707.7,1.05608073]
[1735775869890,0.8887632,708.21,707.63,1.05608073]
[1735775870093,0.8887632,708.2,707.63,1.05608073]
[1735775870288,0.694,708.36,707.63,1.05608073]
[1735775870492,0.88912651,708.35,707.63,1.05608073]
[1735775870693,0.88912651,708.34,707.63,1.05608073]
[1735775870894,0.88912651,708.33,707.63,1.05608073]
[1735775871095,0.88912651,708.32,707.62,1.05608073]
[1735775871393,0.88912651,708.31,707.62,1.05608073]
[1735775871596,0.88912651,708.3,707.62,1.05608073]
[1735775871789,0.88912651,708.29,707.62,1.05608073]
[1735775872094,0.88912651,708.28,707.61,1.05608073]
[1735775872394,0.694,708.36,707.61,1.05608073]
[1735775872395,0.88912651,708.27,707.61,1.05608073]
[1735775872592,0.88912651,708.26,707.61,1.05608073]
[1735775872794,0.694,708.36,707.59,1.05608073]
[1735775872995,0.8894218,708.35,707.59,1.05608073]
[1735775873193,0.8894218,708.34,707.59,1.05608073]
[1735775873488,0.8894218,708.33,707.59,1.05608073]
[1735775873689,0.8894218,708.32,707.59,1.05608073]
[1735775873888,0.8894218,708.31,707.59,1.05608073]
[1735775874092,0.8894218,708.3,707.59,1.05608073]
[1735775874288,0.8894218,708.29,707.59,1.05608073]
[1735775874493,0.8894218,708.28,707.59,1.05608073]
[1735775874795,0.8894218,708.27,707.6,1.05608073]
[1735775874994,0.8894218,708.26,707.6,1.05608073]
[1735775875292,0.8894218,708.25,707.6,1.05608073]
[1735775875489,0.8894218,708.24,707.6,1.05608073]
[1735775875695,0.8894218,708.23,707.59,1.05608073]
[1735775875893,0.8894218,708.22,707.59,1.05608073]
[1735775876086,0.8894218,708.21,707.59,1.05608073]
[1735775876287,0.8894218,708.2,707.59,1.05608073]
[1735775876492,0.8894218,708.19,707.59,1.05608073]
[1735775876692,0.8894218,708.18,707.59,1.05608073]
[1735775876895,0.8894218,708.17,707.55,1.05608073]
[1735775877095,0.8894218,708.16,707.55,1.05608073]
[1735775877291,0.8894218,708.15,707.55,1.05608073]
[1735775877496,0.694,708.36,707.03,0.28287342]
[1735775877497,0.8894218,708.14,707.59,1.05608073]
[1735775877795,0.8894218,708.13,707.59,1.05608073]
[1735775877996,0.8894218,708.12,707.59,1.05608073]
[1735775878190,0.8894218,708.11,707.59,1.05608073]
[1735775878393,0.8894218,708.1,707.59,1.05608073]
[1735775878593,0.8894218,708.09,707.59,1.05608073]
[1735775878793,0.694,708.36,707.59,1.05608073]
[1735775878794,0.8894218,708.08,707.59,1.05608073]
[1735775878993,0.8894218,708.07,707.59,1.05608073]
[1735775879194,0.8894218,708.06,707.59,1.05608073]
[1735775879395,0.8894218,708.05,707.59,1.05608073]
[1735775879694,0.89051832,708.04,707.59,1.05608073]
[1735775879898,0.89051832,708.03,707.59,1.05608073]
[1735775880101,0.694,708.36,707.62,1.05608073]
[1735775880102,0.89051832,708.02,707.62,1.05608073]
[1735775880397,0.89051832,708.01,707.62,1.05608073]
[1735775880593,0.89051832,708.0,707.62,1.05608073]
[1735775880791,0.89051832,707.99,707.62,1.05608073]
[1735775880997,0.89051832,707.98,707.62,1.05608073]
[1735775881192,0.694,708.36,707.62,1.05608073]
[1735775881395,0.694,708.36,707.09,1.27336912]
[1735775881396,0.89064527,708.35,707.64,1.05608073]
[1735775881594,0.89064527,708.34,707.64,1.05608073]
[1735775881798,0.89064527,708.33,707.64,1.05608073]
[1735775882099,0.89064527,708.32,707.64,1.05608073]
[1735775882300,0.89064527,708.31,707.71,1.05608073]
[1735775882600,0.89064527,708.3,707.71,1.05608073]
[1735775882792,0.89064527,708.29,707.71,1.05608073]
[1735775882995,0.89064527,708.28,707.71,1.05608073]
[1735775883197,0.89064527,708.27,707.71,1.05608073]
[1735775883396,0.89064527,708.26,707.71,1.05608073]
[1735775883600,0.89064527,708.25,707.71,1.05608073]
[1735775883799,0.89064527,708.24,707.71,1.05608073]
[1735775884001,0.89064527,708.23,707.71,1.05608073]
[1735775884201,0.8907894,708.22,707.71,1.05608073]
[1735775884397,0.8907894,708.21,707.71,1.05608073]
[1735775884596,0.8907894,708.2,707.71,1.05608073]
[1735775884896,0.8907894,708.19,707.71,1.05608073]
[1735775885102,0.8907894,708.18,707.71,1.05608073]
[1735775885602,0.8907894,708.17,707.71,1.05608073]
[1735775885804,0.8907894,708.16,707.6,1.05608073]
[1735775886103,0.8907894,708.15,707.6,1.05608073]
[1735775886304,0.8907894,708.14,707.6,1.05608073]
[1735775886499,0.8907894,708.13,707.6,1.05608073]
[1735775886804,0.8907894,708.13,707.03,0.28287342]
[1735775886805,0.8907894,708.12,707.38,1.05608073]
[1735775887001,0.8907894,708.11,707.38,1.05608073]
[1735775887195,0.8907894,708.1,707.38,1.05608073]
[1735775887399,0.8907894,708.09,707.38,1.05608073]
[1735775887600,0.89063786,708.08,707.38,1.05608073]
[1735775887806,0.694,708.15,707.38,1.05608073]
[1735775887807,0.89063786,708.07,707.38,1.05608073]
[1735775887999,0.694,708.15,707.41,1.05608073]
[1735775888000,0.89063786,708.06,707.41,1.05608073]
[1735775888204,0.89063786,708.05,707.41,1.05608073]
[1735775888502,0.89063786,708.04,707.41,1.05608073]
[1735775888705,0.89063786,708.03,707.41,1.05608073]
[1735775889004,0.89063786,708.02,707.39,1.05608073]
[1735775889204,0.89063786,708.01,707.39,1.05608073]
[1735775889404,0.694,708.15,707.39,1.05608073]
[1735775889603,0.89056101,708.14,707.39,1.05608073]
[1735775889800,0.89056101,708.13,707.39,1.05608073]
[1735775890006,0.89056101,708.12,707.39,1.05608073]
[1735775890207,0.694,708.15,707.39,1.05608073]
[1735775890506,0.89046797,708.14,707.39,1.05608073]
[1735775890705,0.89046797,708.13,707.39,1.05608073]
[1735775891005,0.89046797,708.12,707.39,1.05608073]
[1735775891205,0.89046797,708.11,707.39,1.05608073]
[1735775891405,0.89046797,708.1,707.39,1.05608073]
[1735775891605,0.89046797,708.09,707.39,1.05608073]
[1735775891805,0.89046797,708.08,707.39,1.05608073]
[1735775892007,0.89046797,708.07,707.39,1.05608073]
[1735775892206,0.89046797,708.06,707.39,1.05608073]
[1735775892502,0.89046797,708.05,707.39,1.05608073]
[1735775892706,0.89046797,708.04,707.39,1.05608073]
[1735775892906,0.89046797,708.03,707.72,1.05608073]
[1735775893105,0.89046797,708.02,707.72,1.05608073]
[1735775893305,0.694,708.15,707.72,1.05608073]
[1735775893507,0.89037606,708.14,707.72,1.05608073]
[1735775893708,0.89037606,708.13,707.72,1.05608073]
[1735775893908,0.89037606,708.12,707.72,1.05608073]
[1735775894108,0.89037606,708.12,707.13,2.16649608]
[1735775894109,0.89037606,708.11,707.74,1.05608073]
[1735775894309,0.89037606,708.1,707.74,1.05608073]
[1735775894509,0.89037606,708.09,707.74,1.05608073]
[1735775894708,0.694,708.15,707.74,1.05608073]
[1735775894908,0.89005352,708.14,707.74,1.05608073]
[1735775895210,0.89005352,708.13,707.74,1.05608073]
[1735775895415,0.89005352,708.12,707.74,1.05608073]
[1735775895611,0.89005352,708.11,707.74,1.05608073]
[1735775895806,0.89005352,708.1,707.78,1.05608073]
[1735775896006,0.694,708.15,707.78,1.05608073]
[1735775896205,0.88991996,708.14,707.78,1.05608073]
[1735775896410,0.88995394,708.13,707.78,1.05608073]
[1735775896712,0.88995394,708.12,707.78,1.05608073]
[1735775896914,0.694,708.15,707.76,1.05608073]
[1735775896915,0.88995394,708.11,707.76,1.05608073]
[1735775897114,0.88995394,708.1,707.76,1.05608073]
[1735775897317,0.88995394,708.09,707.76,1.05608073]
[1735775897513,0.694,708.15,707.76,1.05608073]
[1735775897811,0.88962758,708.14,707.76,1.05608073]
[1735775898014,0.88962758,708.13,707.71,1.05608073]
[1735775898212,0.88962758,708.12,707.71,1.05608073]
[1735775898410,0.88962758,708.11,707.71,1.05608073]
[1735775898609,0.694,708.15,707.71,1.05608073]
[1735775898815,0.88952734,708.1,707.71,1.05608073]